Cogmind - Beta 15 @@@ ROGUE MODE // 2025.09.30 @ 21:40:36 Player: Figgis Result: Destroyed by 8R-AWN with 8R-AWN's Boregun Performance ------------- Evolutions (0) 0 Regions Visited (3) 600 Robots Destroyed (22) 110 Value Destroyed (490) 490 Prototype IDs (3) 60 Alien Tech Used (0) 0 Bonus (-326) -326 TOTAL SCORE: 934 Bonus ------- Friendly Fire -326 Cogmind --------- Core Integrity 0/250 Matter 134/300 Energy 123/125 System Corruption 0% Temperature Cool (0) Movement Walking (190) Ox1 Location -10/Exiles Parts ------- > --- POWER (1) -------- Light Ion Engine > --- PROPULSION (2) --- Aluminum Leg Aluminum Leg > --- UTILITY (2) ------ Large Storage Unit Advanced Targeting Computer > --- WEAPON (2) ------- Autogun Minigun > --- INVENTORY (15) --- Advanced Treads Aluminum Leg Aluminum Leg Aluminum Leg Improved Terrain Scanner Autogun Autogun Autogun Autogun Rocket Launcher Peak State ------------ > --- POWER ------------ Light Deuterium Engine > --- PROPULSION ------- Aluminum Leg Aluminum Leg > --- UTILITY ---------- Large Storage Unit Experimental Sensor Array > --- WEAPON ----------- Autogun Minigun > --- INVENTORY -------- Light Ion Engine Advanced Treads Aluminum Leg Aluminum Leg Aluminum Leg Aluminum Leg High-capacity Storage Unit Huge Storage Unit Advanced Targeting Computer Hacking Suite Autogun Autogun Autogun Autogun Rocket Launcher [Rating: 22] Favorites ----------- Power Light Ion Engine Engine Light Ion Engine Propulsion Aluminum Leg Leg Aluminum Leg Utility Improved Terrain Scanner Device Improved Terrain Scanner Storage Large Storage Unit Processor Advanced Targeting Computer Weapon Autogun Ballistic Gun Autogun Launcher Rocket Launcher Build | -11 -10 -10 -10 ------- Run | Yrd Mat Min Exi Slots Evolved . | . . . . Power . | . . . . Propulsion . | . . . . Utility . | . . . . Weapon . | . . . . Parts Attached 22 | 5 10 4 3 Power 3 | . 2 1 . Engine 3 | . 2 1 . Core . | . . . . Reactor . | . . . . Propulsion 7 | 2 3 1 1 Treads . | . . . . Leg 7 | 2 3 1 1 Wheel . | . . . . Hover . | . . . . Flight . | . . . . Utility 5 | 1 2 1 1 Device 2 | 1 . 1 . Storage 2 | . 2 . . Processor 1 | . . . 1 Hackware . | . . . . Protection . | . . . . Artifact . | . . . . Weapon 7 | 2 3 1 1 Energy Gun . | . . . . Energy Cannon . | . . . . Ballistic Gun 6 | 2 3 1 . Ballistic Cannon . | . . . . Launcher 1 | . . . 1 Special Weapon . | . . . . Impact Weapon . | . . . . Slashing Weapon . | . . . . Piercing Weapon . | . . . . Special Melee Weapon . | . . . . Unidentified Prototypes 1 | . . 1 . Parts Lost 6 | . 4 . 2 Power 2 | . 1 . 1 Propulsion 3 | . 2 . 1 Utility . | . . . . Weapon 1 | . 1 . . Highest Loss Streak 3 | . 3 . 2 To Critical Strikes 1 | . . . 1 Average Backups 12 | 4 11 14 13 Power 1 | 1 1 1 1 Propulsion 4 | . 3 5 4 Utility 3 | 1 3 3 2 Weapon 4 | 1 3 5 5 Tool/Special . | . . . . Unused Backups 20 | . . 4 16 Power 4 | . . 1 3 Propulsion 5 | . . 1 4 Utility 7 | . . 2 5 Weapon 4 | . . . 4 Tool/Special . | . . . . Average Slot Usage (%) 99 | . 98 100 99 Engine 13 | . 13 14 13 Leg 27 | . 27 28 28 Device 13 | . 14 14 13 Storage 13 | . 13 14 14 Ballistic Gun 27 | . 27 28 27 Peak Build Rating 22 | 7 13 22 17 Average Rating 13 | 3 11 15 16 On Entrance 9 | . 7 13 17 Naked Turns . | . . . . Heaviest Build 32 | 3 30 32 32 Greatest Support 20 | 3 20 20 20 Greatest Overweight (x) 2 | . 2 1 1 Average Overweight (x) . | . . 1 1 Largest Inventory Capacity 15 | 5 15 15 15 Average Capacity 14 | 5 13 15 15 Most Carried 15 | 5 15 15 15 Average Carried 12 | 4 11 14 13 Final Capacity 15 | 5 15 15 15 Final Carried 15 | 5 15 15 10 Class Distribution -------------------- 100% | Mutant Dominant Class ---------------- Mutant | -10/Materials Mutant | -10/Mines Mutant | -10/Exiles Resources | -11 -10 -10 -10 ----------- Run | Yrd Mat Min Exi Matter Collected 620 | 270 205 135 10 Remotely . | . . . . Salvage Created 844 | 143 600 90 11 Parts 55 | 8 42 5 . Haulers Intercepted 1 | . 1 . . Recyclers Shooed 2 | 1 1 . . Parts Field Recycled . | . . . . Retrieved Matter . | . . . . Parts Self-Destructed . | . . . . Prevented . | . . . . Kills | -11 -10 -10 -10 ------- Run | Yrd Mat Min Exi Combat Hostiles Destroyed 18 | . 11 2 5 Guns 13 | . 11 2 . AOE 5 | . . . 5 Classes Destroyed 9 | 2 6 . 1 Builder 1 | . 1 . . Tunneler 2 | 2 . . . Hauler 1 | . 1 . . Recycler 2 | 1 1 . . Operator 1 | . 1 . . Watcher 2 | . 2 . . Swarmer 3 | . 3 . . Grunt 10 | . 8 2 . Assembled 6 | . . . 6 Best Kill Streak 6 | 2 6 2 5 Combat Bots Only 5 | . 5 2 5 Max Kills in Single Turn 3 | 1 1 1 3 Gunslinging . | . . . . Exploded 3 | . . . 3 Melee . | . . . . Uniques/NPCs Destroyed . | . . . . Combat | -11 -10 -10 -10 -------- Run | Yrd Mat Min Exi Hostile Shots Fired 124 | . 80 19 25 Missed 28 | . 20 3 5 Hits 96 | . 60 16 20 Projectile 96 | . 60 16 20 Critical Strikes 6 | . 1 . 5 Damage Taken 1168 | . 634 214 320 Core 259 | . 129 76 54 Absorbed by Shields . | . . . . Core Remaining (%) 100 | 100 . . . Volleys Fired 77 | 10 44 9 14 Largest 2 | 2 2 2 2 Hottest 48 | 40 46 48 48 Shots Fired 146 | 20 87 18 21 Gun 140 | 20 87 18 15 Cannon . | . . . . Launcher 6 | . . . 6 Special . | . . . . Kinetic 140 | 20 87 18 15 Thermal . | . . . . Explosive 6 | . . . 6 Electromagnetic . | . . . . Robot Hit Streak 13 | 4 13 5 10 Robot Miss Streak 4 | 2 4 2 2 Penetration Max . | . . . . Secondary Targets 4 | . 4 . . Max Gunslinging Chain 1 | . 1 . . Shots Hit Robots 94 | 12 55 12 15 Core Hits 52 | 6 30 3 13 Critical Kills . | . . . . Critical Parts Destroyed . | . . . . Critical Strikes . | . . . . Melee Attacks . | . . . . Impact . | . . . . Slashing . | . . . . Piercing . | . . . . Sneak Attacks . | . . . . Combat Hostiles . | . . . . Follow-up Attacks . | . . . . Damage Inflicted 1573 | 104 541 219 709 Guns 1051 | 104 541 219 187 Cannons . | . . . . Explosions 522 | . . . 522 Melee . | . . . . Ramming . | . . . . Kinetic 1051 | 104 541 219 187 Thermal . | . . . . Explosive 522 | . . . 522 Electromagnetic . | . . . . Impact . | . . . . Slashing . | . . . . Piercing . | . . . . Highest Corruption . | . . . . Average Corruption . | . . . . Corruption Purged . | . . . . Corruption Blocked . | . . . . Overload Shots . | . . . . Overflow Damage 6 | . . . 6 Projectiles . | . . . . Explosions 6 | . . . 6 Melee . | . . . . Knockbacks . | . . . . Impact . | . . . . Kinetic . | . . . . Secondary . | . . . . Self-Inflicted Damage . | . . . . Shots . | . . . . Rammed . | . . . . Targets Rammed . | . . . . Kicked . | . . . . Crushed . | . . . . Highest Temperature 127 | . 25 127 16 Average Temperature 29 | . 8 73 8 Received Heat Transfer 348 | . 228 120 . Siege Activations . | . . . . Martial Activations . | . . . . Shielding Activations . | . . . . Robots Disrupted . | . . . . Combat Hostiles . | . . . . Robots Corrupted . | . . . . Combat Hostiles . | . . . . Parts Fried . | . . . . Impact Corruptions . | . . . . Robots Melted . | . . . . Combat Hostiles . | . . . . Parts Melted . | . . . . Heat Transferred . | . . . . Parts Sabotaged . | . . . . Parts Stolen . | . . . . Parts Stripped . | . . . . Power Chain Reactions . | . . . . Alert | -11 -10 -10 -10 ------- Run | Yrd Mat Min Exi Maximum Alert Level . | . . . . Low Security (%) 100 | 100 100 100 . Level 1 . | . . . . Level 2 . | . . . . Level 3 . | . . . . Level 4 . | . . . . Level 5 . | . . . . High Security . | . . . . Max Security . | . . . . Peak Influence 110 | 5 110 50 . Initial . | . . . . Average 22 | . 33 4 . Influence Increases 401 | 15 336 50 . Destroy 0b10 Robot/C 260 | . 220 40 . Destroy 0b10 Robot/NC 45 | 15 30 . . Destroy Leader 66 | . 56 10 . Successful Hack 15 | . 15 . . Lose Combat Pursuer 15 | . 15 . . Influence Decreases 401 | 15 336 50 . Time Decay 361 | 15 296 50 . Lost Part 40 | . 40 . . Squads Dispatched 3 | . 2 1 . Investigation 2 | . 1 1 . Extermination . | . . . . Reinforcement 1 | . 1 . . Assault . | . . . . Garrison . | . . . . Intercept . | . . . . Searches Triggered . | . . . . Construction Impeded . | . . . . Haulers Reinforced . | . . . . Active Scanning Responses . | . . . . Cargo Convoy Interrupts . | . . . . Stealth | -11 -10 -10 -10 --------- Run | Yrd Mat Min Exi Distress Signals . | . . . . Communications Jammed . | . . . . Distress Signals . | . . . . Times Spotted 28 | . 19 2 7 Peak Tracking Total 8 | . 5 2 8 Tactical Retreats 1 | . 1 . . Traps | -11 -10 -10 -10 ------- Run | Yrd Mat Min Exi Traps Triggered 1 | . 1 . . Indirectly . | . . . . Trap Hack Attempts . | . . . . Triggered . | . . . . Disarmed . | . . . . Reprogrammed . | . . . . Reused . | . . . . Traps Extracted . | . . . . Installed . | . . . . Triggered . | . . . . Machines | -11 -10 -10 -10 ---------- Run | Yrd Mat Min Exi Machines Disabled 4 | . . . 4 Max in Single Turn 2 | . . . 2 Machines Repaired . | . . . . Machines Dismantled . | . . . . Machines Sabotaged . | . . . . Overloaded Fab Kills . | . . . . Hacking | -11 -10 -10 -10 --------- Run | Yrd Mat Min Exi Machines Accessed 8 | . 6 1 1 Terminals 6 | . 6 . . Fabricators . | . . . . Repair Stations . | . . . . Recycling Units . | . . . . Scanalyzers . | . . . . Garrison Access . | . . . . Total Hacks 24 | . 15 1 8 Successful 15 | . 6 1 8 Failed 9 | . 9 . . Catastrophic 1 | . 1 . . Database Lockouts . | . . . . Manual 4 | . 4 . . Terminals 15 | . 15 . . Fabricators . | . . . . Repair Stations . | . . . . Recycling Units . | . . . . Scanalyzers . | . . . . Garrison Access . | . . . . Terminal Hacks 15 | . 6 1 8 Record 9 | . 1 . 8 Robot Analysis 2 | . 2 . . Prototype ID Bank 1 | . 1 . . Open Door 1 | . . 1 . Locate Traps 1 | . 1 . . Zone Layout 1 | . 1 . . Fabricator Hacks . | . . . . Repair Station Hacks . | . . . . Recycling Unit Hacks . | . . . . Scanalyzer . | . . . . Garrison Access Hacks . | . . . . Unauthorized Hacks . | . . . . Terminals . | . . . . Fabricators . | . . . . Repair Stations . | . . . . Recycling Units . | . . . . Scanalyzers . | . . . . Garrison Access . | . . . . Data Cores Recovered . | . . . . Used . | . . . . Hacking Detections 6 | . 6 . . Full Trace Events . | . . . . Feedback Events . | . . . . Feedback Blocked . | . . . . Robot Schematics Acquired . | . . . . Robots Built . | . . . . Authchips . | . . . . Time . | . . . . Total Robot Build Rating . | . . . . Part Schematics Acquired . | . . . . Parts Built . | . . . . Authchips . | . . . . Time . | . . . . Total Part Build Rating . | . . . . Parts Repaired . | . . . . Time . | . . . . Parts Recycled . | . . . . Recycled Matter . | . . . . Retrieved Matter . | . . . . Retrieved Components . | . . . . Parts Scanalyzed . | . . . . Part Schematics Acquired . | . . . . Parts Damaged . | . . . . Bothacking | -11 -10 -10 -10 ------------ Run | Yrd Mat Min Exi Used RIF Installer . | . . . . Robots Hacked . | . . . . Non-combat . | . . . . Combat . | . . . . Robot Hacks Applied . | . . . . Relay Couplers Released . | . . . . Fabnet Peak Effective % . | . . . . Robots Rewired . | . . . . Allies Hacked . | . . . . Hacks Repelled . | . . . . Allies | -11 -10 -10 -10 -------- Run | Yrd Mat Min Exi Total Allies 3 | . . 3 . Largest Group 3 | . . 3 3 Highest-Rated Group 40 | . . 40 40 Highest-Rated Ally 16 | . . 16 16 Total Orders 3 | . . . 3 STAY 3 | . . . 3 Ally Attacks 10 | . . . 10 Total Damage 9 | . . . 9 Kills . | . . . . Allies Corrupted . | . . . . Allies Melted . | . . . . Intel | -11 -10 -10 -10 ------- Run | Yrd Mat Min Exi Active Infowar (turns) 2502 | 3 1147 567 785 Terrain 2502 | 3 1147 567 785 Robot Analysis Total 2 | . 2 . . Derelict Logs Recovered 1 | . . 1 . Drone Launches . | . . . . Drone Recoveries . | . . . . Exploration | -11 -10 -10 -10 ------------- Run | Yrd Mat Min Exi Turns Passed 2636 | 88 1147 574 827 Spaces Moved 1355 | 97 596 265 397 Core 145 | 97 48 . . Treads . | . . . . Legs 1210 | . 548 265 397 Wheels . | . . . . Hover . | . . . . Flight . | . . . . Fastest Speed 50 | 50 50 190 190 Average Speed 170 | 50 167 190 190 Slowest Speed 260 | 50 260 190 190 Overloaded Moves . | . . . . Propulsion Burnouts . | . . . . Robots Hopped . | . . . . Potential Cave-ins . | . . . . Cave-ins Triggered . | . . . . Exploration Rate (%) 44 | 4 77 41 56 Regions Visited 3 Branch Regions 2 Pre-discovered Areas 1 | . . 1 . Known Exits Taken . | . . . . Unknown Exits Taken 3 | 1 1 1 . Scrap Searched 1 | . . 1 . Spaces Dug 10 | . . . 10 Terrain Destroyed 35 | . . . 35 Melee . | . . . . Projectile . | . . . . AOE 35 | . . . 35 Terrain Rammed . | . . . . Walls Destroyed . | . . . . Machines Disabled . | . . . . Actions | -11 -10 -10 -10 --------- Run | Yrd Mat Min Exi Total 1574 | 119 675 324 456 Wait 64 | . 4 36 24 Move 1352 | 96 595 264 397 Hop . | . . . . Pick Up 35 | 8 18 3 6 Fast Attach 3 | 2 . 1 . Attach 11 | 3 6 . 2 Detach . | . . . . Swap 12 | . 4 4 4 Drop 20 | . 4 7 9 Fire 77 | 10 44 9 14 Melee . | . . . . Ram . | . . . . Kick . | . . . . Crush . | . . . . Escape Stasis . | . . . . Rewire . | . . . . Trap . | . . . . Miscellaneous . | . . . . Route ------- -11/Scrapyard -10/Materials (discovered 3 exits: [*Mat x2] / *Min) -10/Mines (discovered 2 exits: [*Mat] / *Exi) -10/Exiles (discovered 1 exit: [*Min]) History --------- Turn | Location | Event 7 | -11/Scrapyard | Discovered new exit (range 16) 89 | -11/Scrapyard | Entered Materials 96 | -10/Materials | Discovered new exit (range 15) 128 | -10/Materials | Discovered new exit (range 15) 301 | -10/Materials | Build established: Mutant 492 | -10/Materials | Lost 3 parts (1p1n1w) 691 | -10/Materials | Core integrity fell below 50% 700 | -10/Materials | Discovered new exit (range 9) 1236 | -10/Materials | Entered Mines 1321 | -10/Mines | Met a Derelict shopkeep closing up shop 1345 | -10/Mines | Learned location of Storage (-8) 1495 | -10/Mines | Core integrity fell below 20% 1554 | -10/Mines | Found a damaged Exp. Sensor Array with a note attached 1559 | -10/Mines | Found Prototype Device 1559 | -10/Mines | Identified Exp. Sensor Array 1637 | -10/Mines | Discovered new exit (range 8) 1783 | -10/Mines | Assisted by bots powering up and referring to "LRC-V3" 1802 | -10/Mines | Deemed a non-threat by the Exiles lab entrance 1802 | -10/Mines | Discovered new exit (range 5) 1810 | -10/Mines | Entered Exiles 1810 | -10/Exiles | Accompanied by 3 allies 1856 | -10/Exiles | Met 8R-AWN 1886 | -10/Exiles | Met EX-HEX 2006 | -10/Exiles | Discovered new exit (range 14) 2304 | -10/Exiles | Met EX-DEC 2602 | -10/Exiles | Attacked by the Exiles 2637 | -10/Exiles | Destroyed by 8R-AWN with 8R-AWN's Boregun Last Messages --------------- 02610_ HV Slug penetrates Trooper 1a. 02610_ Trooper 1a suffers critical hit (Destroy). 02610_ Trooper 1a destroyed. 02610_ HV Slug penetrates Wall. 02611_ Destroyed Asb. Rifle. 02612_ HV Slug penetrates Trooper 1b. 02612_ Trooper 1b suffers critical hit (Destroy). 02612_ HV Slug penetrates Wall. 02612_ HV Slug penetrates Trooper 1b. 02612_ Trooper 1b destroyed. 02612_ HV Slug penetrates Wall. 02614_ Wall collapses. 02621_ Penetrated by HV Slug. 02623_ HV Slug penetrates Earth. 02626_ Penetrated by HV Slug. 02626_ Critical hit (Destroy). 02626_ Aluminum Leg destroyed. 02628_ Penetrated by HV Slug. 02632_ HV Slug penetrates Earth. 02635_ Penetrated by HV Slug. Map ----- +----------------------------------------------------+ | ?????????????????????????????????????????????????? | | ?????????????????????????????????????????????????? | | ?????????????????????????????????????????????????? | | ?????????????????????????????????????????????????? | | ?????????????????????????????????????????????????? | | ?????????????????????????????????????????????????? | | ?????????????????????????????????????????????????? | | ?????????????????????????????????????????????????? | | ???????????????????????????????#????????#????????? | | ?????????????#???????????????????????????????????? | | ???????????????????????????##????????????#???????? | | ???????????#??????????????????#??#??##???#???????? | | #????####?###???????#???#???????#??????????#???? | | #####"""""""""###?????#??#????#??????#?????#??# | | " """ """"##????????????#?##???????#?????? | | "" " #??????????##?#???#???????????? | | " """#???#??##?????????#??????##???? | | " "#????#???#??######??#???#?????? | | " "##??????#??##" ##???????#???#? | | ""###????#??#" #?#?#????#????# | | """#?????###" #??###???#??# | | " "#????### ##?#??????### | | ?#""" ##???# ########## | | ?##""" ##### %%= #""""## | | ??#"""" ###!! ! | | ?##"" @g! # | | ##"""" ## | | "" #"""""#### | | #########?#### | | #; ####??#?????????##### | | ## ###???#??????##??#??# | | " #?####?????#?#?????#????#? | | "" "" #??????????#??????##???#?? | | #""" " " ""# a #???##????#????###????????? | | #####""" """# ?????##??????#??????#?????? | | #???###""""#### ?????##??#??#?##?????????#? | | ###???#######?# # ?????????#????##?#????#???? | | "!##?????#??????######???#?#??????????#?????#??##? | | !#??????????##???#???#?????#???#???????????#????? | | "##???????????#???#???????????????????#???##????? | | "#?#????????????????????????#???????????????????? | | ####????????#???????????????????????#???????#????? | | ??#??????#??????????????????????????????????#????? | | ??????##?#???????????????????????????????????????? | | ???????#?????????????????????????????????????????? | | ?????????????????????????????????????????????????? | | ?????????????????????????????????????????????????? | | ?????????????????????????????????????????????????? | | ?????????????????????????????????????????????????? | | ?????????????????????????????????????????????????? | +----------------------------------------------------+ Best States ------------- Heat Dissipation 25 Energy Generation 14 Energy Capacity 140 Matter Stores 300 Matter Capacity 300 Sight Range 16 Terrain Scan Range 16 Terrain Scan Density 10 Evasion (%) 55 Targeting Accuracy 8 Item Schematics ----------------- None Robot Schematics ------------------ None Fabricated ------------ Nothing Repaired ---------- Nothing Alien Tech Used ----------------- None Achievements -------------- None Challenges ------------ None Game ------ Seed HybridScatterTrap Manual? 0 Play Time 00:13:45 Cumulative 195.8 hours Start 2025.09.30 @ 21:25:47 End 2025.09.30 @ 21:40:36 Sessions 1 Manual Loads 0 Difficulty Rogue Special Mode None Game No. 315 Rogue 312 Adventurer 3 Explorer 0 Win Type - Total 1 Types 1/0/0/0/0/0/0/0/0/0 Lore% 65 Gallery% 60 Achievement% 47 Wizard Run 0 Options --------- Layout 0 ASCII 0 Keyboard 0 Movement Mouse Keybinds 0 Fullscreen 2 Font 18/SmallcapsGlow Map View 76x50 Zoom Use 0% Tactical HUD 1 Map Filters NONE Filters NONE Steam 1 RUN: 74528169-08e7-4ebb-8f5d-c610eac287ac